[Event "GER-ch Youth U10 2020"]
[Site "Willingen"]
[Date "2020.10.29"]
[Round "4.28"]
[White "Bock, Leonas"]
[Black "Peters, Lasse"]
[Result "1-0"]
[ECO "D05"]
[WhiteElo "1301"]
[BlackElo "1223"]
[Annotator "NA RC"]
[PlyCount "59"]
[EventDate "2020.10.27"]
[EventType "swiss"]
[EventRounds "7"]
[EventCountry "GER"]
[SourceTitle "playchess.com"]
[Source "ChessBase"]
[SourceQuality "1"]
[TimeControl "40/4500+30:900+30"]

1. d4 {[%emt 0:00:00]} d5 {[%emt 0:00:00]} 2. Nf3 {[%emt 0:00:00]} Nf6 {[%emt 0:00:00]} 3. e3 {[%emt 0:00:03]} e6 {[%emt 0:00:00]} 4. Bd3 {[%emt 0:00:18]} Bd6 {[%emt 0:00:25]} 5. b3 {[%emt 0:00:28]} b6 {[%emt 0:00:48]} 6. Bb2 {[%emt 0:00:16]} Bb7 {[%emt 0:00:21]} 7. O-O {[%emt 0:00:51]} O-O {[%emt 0:00:03]} 8. Nbd2 {[%emt 0:00:16]} Nbd7 {[%emt 0:00:27]} 9. c4 {[%emt 0:01:29]} c5 {[%emt 0:00:30]} 10. Rc1 {[%emt 0:01:08]} Rc8 {[%emt 0:00:51]} 11. Ne5 {[%emt 0:06:14]} Ne4 {[%emt 0:01:23]} 12. f3 {[%emt 0:03:14]} f6 {[%emt 0:05:02]} 13. fxe4 {[%emt 0:01:19]} fxe5 {[%emt 0:00:44]} 14. exd5 {[%emt 0:06:35]} exd4 {[%emt 0:00:37]} 15. Qh5 {[%emt 0:11:28]} g6 {[%emt 0:02:52]} 16. Bxg6 {[%emt 0:07:27]} hxg6 {[%emt 0:03:15]} 17. Qxg6+ {[%emt 0:00:08]} Kh8 {[%emt 0:01:00]} 18. Qh6+ {[%emt 0:00:18]} Kg8 {[%emt 0:00:35]} 19. Qxe6+ {[%emt 0:01:23]} Kh8 {[%emt 0:07:20]} 20. Qxd6 {[%emt 0:00:28]} Qg5 {[%emt 0:12:55]} 21. Qg3 {[%emt 0:07:25]} Qe7 {[%emt 0:03:06]} 22. exd4 {[%emt 0:03:14]} Kh7 {[%emt 0:01:37]} 23. dxc5 {[%emt 0:02:53]} Nxc5 {[%emt 0:00:19]} 24. d6 {[%emt 0:04:09]} Qd7 25. Nf3 {[%emt 0:04:07]} Bxf3 {[%emt 0:05:11]} 26. Rxf3 {[%emt 0:00:38]} Rxf3 {[%emt 0:00:13]} 27. Qxf3 {[%emt 0:00:13]} Qxd6 {[%emt 0:01:01]} 28. Qh5+ {[%emt 0:00:50]} Qh6 {[%emt 0:02:38]} 29. Qf7+ {[%emt 0:00:23]} Qg7 {[%emt 0:02:12]} 30. Qxg7# 1-0

[Event "GER-ch Youth U10 2020"]
[Site "Willingen"]
[Date "2020.10.30"]
[Round "5.1"]
[White "Besou, Hussain"]
[Black "Buchinger, Alexis"]
[Result "1-0"]
[ECO "B01"]
[WhiteElo "1825"]
[BlackElo "1496"]
[Annotator "NA RC"]
[PlyCount "89"]
[EventDate "2020.10.27"]
[EventType "swiss"]
[EventRounds "7"]
[EventCountry "GER"]
[SourceTitle "playchess.com"]
[Source "ChessBase"]
[SourceQuality "1"]
[TimeControl "40/4500+30:900+30"]

{[%evp 14,76,43,-37,-35,-32,187,172,181,202,212,117,134,150,175,29,120,147,289,32767,32767,32767,32767,32767,295,211,230,131,32767,32767,32767,32767,32767,129,207,202,187,170,246,292,314,337,398,325,341,354,372,347,365,245,245,278,409,485,782,833,837,839,915,1352,1305,1901,29988,29987,29990]} 1. e4 {[%emt 0:00:00]} d5 {[%emt 0:00:00]} 2. exd5 {[%emt 0:00:00]} Qxd5 {[%emt 0:00:00]} 3. Nc3 {[%emt 0:00:00]} Qa5 {[%emt 0:00:07]} 4. d4 {[%emt 0:00:00]} Nf6 5. Nf3 {[%emt 0:02:07]} Bf5 {[%emt 0:00:27]} 6. Bc4 {[%emt 0:00:14]} e6 {[%emt 0:00:07]} 7. O-O {[%emt 0:00:17]} Nc6 {[%emt 0:01:35] B01: Scandinavian Defence.} 8. Qe2 {[%emt 0:05:21]} (8. Bf4 $14) 8... O-O-O {[%emt 0:02:02]} 9. Be3 {[%emt 0:00:33] [#]} Bb4 $2 $146 {[%emt 0:01:40] [#]} ({Predecessor:} 9... Bg4 $11 10. Rfd1 Qh5 11. a3 Bd6 12. h3 Bxh3 13. Ne5 Bg4 14. f3 Nxe5 15. dxe5 Bxe5 16. Bxa7 {0-1 (25) Leite,T (1662)-Simoes,L (2051) Rio de Janeiro 2016}) 10. Nb5 $1 {[%emt 0:01:06]} Nd5 {[%emt 0:08:23]} 11. c3 {[%emt 0:05:41]} Be7 {[%emt 0:02:35] [#]} 12. b4 {[%emt 0:01:42]} (12. a4 $1 $18) 12... Qb6 {[%emt 0:04:51]} 13. Bd2 {[%emt 0:02:48]} a6 {[%emt 0:01:08] [#]} 14. Na3 {[%emt 0:00:05]} ({Only move:} 14. a4 $1 $16 {[%cal Ra4a5]} axb5 15. axb5) 14... h6 {[%emt 0:05:00]} (14... a5 $11) 15. Bd3 {[%emt 0:00:33]} g5 $2 {[%emt 0:01:27]} (15... Bg4 $16) 16. Bxf5 {[%emt 0:00:13]} exf5 {[%emt 0:00:19]} 17. Nc4 {[%emt 0:00:05]} Qa7 {[%emt 0:00:32]} 18. Qd3 {[%emt 0:00:18]} f4 {[%emt 0:01:14]} 19. Qf5+ {[%emt 0:00:04]} Kb8 {[%emt 0:01:02]} 20. a4 {[%emt 0:03:09]} ({Don't do} 20. Qxf7 $6 Bf6 $16) (20. Nfe5 $18) 20... Bf6 {[%emt 0:02:14]} 21. b5 {[%emt 0:02:16]} Nce7 {[%emt 0:00:20]} 22. Qe4 {[%emt 0:00:10]} a5 {[%emt 0:00:52]} 23. Rfb1 {[%emt 0:04:24]} b6 {[%emt 0:01:02]} (23... Nc8 $16 {was worth a try.}) 24. Nfe5 {[%emt 0:00:19]} Bxe5 {[%emt 0:14:25]} 25. Nxe5 {[%emt 0:00:09]} f5 {[%emt 0:01:28]} 26. Qc2 {[%emt 0:00:06]} Nf6 {[%emt 0:00:32]} 27. Nf7 {[%emt 0:00:14] Double Attack} Qb7 {[%emt 0:00:37]} 28. Nxd8 {[%emt 0:00:09]} ({Resist} 28. Nxh8 Rxh8 29. Re1 Rh7 $18) 28... Rxd8 {[%emt 0:00:06]} 29. Re1 {[%emt 0:00:19]} Ng6 {[%emt 0:00:24]} 30. f3 {[%emt 0:01:40]} Nh4 {[%emt 0:00:33]} 31. Bc1 {[%emt 0:17:00]} Rg8 {[%emt 0:09:39]} 32. Qf2 {[%emt 0:06:12]} Ka7 {[%emt 0:07:49]} (32... Qd5 $142 33. Kh1 Rc8) 33. c4 {[%emt 0:04:18]} g4 {[%emt 0:02:19]} (33... Rd8 $142 34. Ba3 Rg8) 34. Qxh4 {[%emt 0:00:21] Double Attack} gxf3 {[%emt 0:00:18]} 35. Ra2 {[%emt 0:00:04]} Ng4 {[%emt 0:01:31]} 36. Bxf4 {[%emt 0:00:26]} fxg2 {[%emt 0:02:38]} 37. Qe7 {[%emt 0:01:01]} Nxh2 {[%emt 0:02:54]} 38. Bxh2 {[%emt 0:00:05]} Kb8 {[%emt 0:01:09]} 39. d5 {[%emt 0:00:13]} f4 {[%emt 0:00:17]} 40. Bxf4 {[%emt 0:00:05]} Rg4 {[%emt 0:00:07]} 41. Qd8+ {[%emt 0:15:39]} Ka7 {[%emt 0:15:10]} 42. Qxc7 {[%emt 0:00:12]} Rxf4 {[%emt 0:00:04]} 43. Qxf4 {[%emt 0:00:07]} Qg7 {[%emt 0:00:12]} 44. d6 {[%emt 0:00:09]} Qc3 {[%emt 0:00:36]} 45. Qf7+ {[%emt 0:00:08]} 1-0

[Event "GER-ch Youth U10 2020"]
[Site "Willingen"]
[Date "2020.10.30"]
[Round "5.2"]
[White "Dordevic, Tom"]
[Black "Goldmann, David"]
[Result "0-1"]
[ECO "A45"]
[WhiteElo "1535"]
[BlackElo "1644"]
[Annotator "NA RC"]
[PlyCount "162"]
[EventDate "2020.10.27"]
[EventType "swiss"]
[EventRounds "7"]
[EventCountry "GER"]
[SourceTitle "playchess.com"]
[Source "ChessBase"]
[SourceQuality "1"]
[TimeControl "40/4500+30:900+30"]

1. d4 {[%emt 0:00:00]} Nf6 {[%emt 0:00:00]} 2. Bf4 {[%emt 0:00:00]} d5 {[%emt 0:00:00]} 3. e3 {[%emt 0:00:00]} c5 {[%emt 0:00:00]} 4. c3 {[%emt 0:00:00]} Nc6 {[%emt 0:00:00]} 5. Nd2 {[%emt 0:00:09]} e6 {[%emt 0:02:11]} 6. Ngf3 {[%emt 0:00:56]} Be7 {[%emt 0:00:16]} 7. Bd3 {[%emt 0:00:04]} O-O {[%emt 0:00:14]} 8. Ne5 {[%emt 0:00:32]} Nxe5 {[%emt 0:01:13]} 9. dxe5 {[%emt 0:00:01]} Nd7 {[%emt 0:00:27]} 10. Nf3 {[%emt 0:00:29]} f5 {[%emt 0:00:28]} 11. h4 {[%emt 0:01:31]} c4 {[%emt 0:02:49]} 12. Bc2 {[%emt 0:00:13]} Nc5 {[%emt 0:00:11]} 13. Ng5 {[%emt 0:04:42]} g6 {[%emt 0:00:49]} 14. g4 {[%emt 0:02:25]} h6 {[%emt 0:02:35]} 15. Nf3 {[%emt 0:03:05]} g5 {[%emt 0:01:15]} 16. hxg5 {[%emt 0:03:22]} hxg5 {[%emt 0:00:02]} 17. Bg3 {[%emt 0:00:13]} Kg7 {[%emt 0:02:18]} 18. gxf5 {[%emt 0:02:36]} exf5 {[%emt 0:00:27]} 19. Nd4 {[%emt 0:03:14]} Rh8 {[%emt 0:00:44]} 20. Rxh8 {[%emt 0:02:22]} Qxh8 {[%emt 0:00:11]} 21. Nxf5+ {[%emt 0:00:25]} Bxf5 {[%emt 0:00:16]} 22. Bxf5 {[%emt 0:00:01]} Rf8 {[%emt 0:00:19]} 23. Bg4 {[%emt 0:01:51]} Nd3+ {[%emt 0:00:30]} 24. Ke2 {[%emt 0:00:39]} Qh7 25. Qh1 {[%emt 0:06:05]} Qxh1 {[%emt 0:03:37]} 26. Rxh1 {[%emt 0:00:01]} Nxb2 {[%emt 0:00:29]} 27. Rb1 {[%emt 0:01:28]} Ba3 {[%emt 0:00:15]} 28. Be6 {[%emt 0:03:03]} Rd8 {[%emt 0:00:57]} 29. f4 {[%emt 0:07:14]} gxf4 {[%emt 0:05:45]} 30. exf4 {[%emt 0:00:01]} d4 {[%emt 0:00:00]} 31. Bh4 {[%emt 0:06:28]} Rf8 {[%emt 0:05:13]} 32. Bf6+ {[%emt 0:01:32]} Rxf6 {[%emt 0:00:10]} 33. exf6+ {[%emt 0:00:02]} Kxf6 {[%emt 0:00:01]} 34. Bc8 {[%emt 0:03:34]} Na4 {[%emt 0:04:06]} 35. Kd2 {[%emt 0:02:44]} Nxc3 {[%emt 0:01:03]} 36. Rxb7 {[%emt 0:01:28]} Ne4+ {[%emt 0:00:08]} 37. Ke1 {[%emt 0:12:48]} c3 {[%emt 0:00:22]} 38. Rc7 {[%emt 0:05:55]} Bc5 {[%emt 0:02:05]} 39. Ba6 {[%emt 0:06:37]} c2 {[%emt 0:00:40]} 40. Rxc5 {[%emt 0:00:14]} Nxc5 {[%emt 0:00:06]} 41. Kd2 {[%emt 0:15:08]} d3 {[%emt 0:15:06]} 42. Bxd3 {[%emt 0:00:35]} Nxd3 43. Kxc2 {[%emt 0:00:20]} Nxf4 {[%emt 0:00:15]} 44. Kc3 {[%emt 0:00:56]} Ke7 {[%emt 0:00:31]} 45. Kc4 {[%emt 0:01:24]} Kd7 {[%emt 0:00:08]} 46. Kb5 {[%emt 0:00:51]} Kc7 {[%emt 0:00:04]} 47. Kc5 {[%emt 0:00:20]} Ne6+ {[%emt 0:00:20]} 48. Kb5 {[%emt 0:00:11]} Kb7 {[%emt 0:00:06]} 49. Ka5 {[%emt 0:01:06]} a6 {[%emt 0:00:21]} 50. Ka4 {[%emt 0:00:29]} Kb6 {[%emt 0:00:06]} 51. Kb4 {[%emt 0:00:05]} a5+ {[%emt 0:00:17]} 52. Kc4 {[%emt 0:00:35]} Nc7 {[%emt 0:00:13]} 53. Kb3 {[%emt 0:00:42]} Kb5 {[%emt 0:00:30]} 54. Ka3 {[%emt 0:00:06]} Nd5 {[%emt 0:00:19]} 55. Kb3 {[%emt 0:00:18]} a4+ {[%emt 0:00:20]} 56. Ka3 {[%emt 0:00:18]} Nb6 {[%emt 0:00:15]} 57. Kb2 {[%emt 0:00:08]} Kb4 {[%emt 0:00:10]} 58. Ka1 {[%emt 0:02:40]} Ka3 {[%emt 0:00:03]} 59. Kb1 {[%emt 0:00:04]} Nc8 {[%emt 0:00:14]} 60. Ka1 {[%emt 0:00:16]} Nd6 {[%emt 0:00:06]} 61. Kb1 {[%emt 0:00:12]} Ne8 {[%emt 0:00:52]} 62. Ka1 {[%emt 0:00:03]} Nd6 {[%emt 0:00:21]} 63. Kb1 {[%emt 0:00:07]} Nf5 {[%emt 0:00:18]} 64. Ka1 {[%emt 0:00:11]} Ne3 {[%emt 0:00:01]} 65. Kb1 {[%emt 0:00:10]} Nd5 {[%emt 0:00:06]} 66. Ka1 {[%emt 0:00:05]} Nb4 {[%emt 0:00:01]} 67. Kb1 {[%emt 0:00:13]} Nxa2 {[%emt 0:00:11]} 68. Ka1 {[%emt 0:00:03]} Nb4 {[%emt 0:00:14]} 69. Kb1 {[%emt 0:00:09]} Kb3 {[%emt 0:00:06]} 70. Ka1 {[%emt 0:00:11]} a3 {[%emt 0:00:07]} 71. Kb1 {[%emt 0:00:03]} a2+ {[%emt 0:00:05]} 72. Kc1 {[%emt 0:00:03]} a1=Q+ {[%emt 0:00:03]} 73. Kd2 {[%emt 0:00:10]} Qd4+ {[%emt 0:00:14]} 74. Ke2 {[%emt 0:00:10]} Qd3+ {[%emt 0:00:09]} 75. Kf2 {[%emt 0:00:03]} Kc4 {[%emt 0:00:11]} 76. Kg2 {[%emt 0:00:07]} Kd4 {[%emt 0:00:09]} 77. Kf2 {[%emt 0:00:07]} Qe3+ {[%emt 0:00:15]} 78. Kg2 {[%emt 0:00:05]} Ke4 {[%emt 0:00:12]} 79. Kh1 {[%emt 0:00:12]} Qd2 {[%emt 0:00:07]} 80. Kg1 {[%emt 0:00:04]} Kf3 {[%emt 0:00:10]} 81. Kh1 {[%emt 0:00:03]} Qg2# {[%emt 0:00:07]} 0-1

[Event "GER-ch Youth U10 2020"]
[Site "Willingen"]
[Date "2020.10.30"]
[Round "5.3"]
[White "Neuhoff, Laertes"]
[Black "Lu, Yunong Elias"]
[Result "1-0"]
[ECO "B14"]
[WhiteElo "1655"]
[BlackElo "1521"]
[Annotator "NA RC"]
[PlyCount "71"]
[EventDate "2020.10.27"]
[EventType "swiss"]
[EventRounds "7"]
[EventCountry "GER"]
[SourceTitle "playchess.com"]
[Source "ChessBase"]
[SourceQuality "1"]
[TimeControl "40/4500+30:900+30"]

1. e4 {[%emt 0:00:00]} c6 {[%emt 0:00:00]} 2. d4 {[%emt 0:00:00]} d5 {[%emt 0:00:02]} 3. exd5 {[%emt 0:00:00]} cxd5 {[%emt 0:00:39]} 4. c4 {[%emt 0:00:05]} Nf6 {[%emt 0:03:46]} 5. Nc3 {[%emt 0:01:14]} g6 {[%emt 0:00:15]} 6. cxd5 {[%emt 0:01:58]} Nxd5 {[%emt 0:00:36]} 7. Bc4 {[%emt 0:01:51]} Nb6 {[%emt 0:01:13]} 8. Bb3 {[%emt 0:00:54]} Nc6 {[%emt 0:00:36]} 9. d5 {[%emt 0:05:43]} Na5 {[%emt 0:01:35]} 10. Ba4+ {[%emt 0:03:44]} Nxa4 {[%emt 0:01:27]} 11. Qxa4+ {[%emt 0:00:12]} Bd7 {[%emt 0:00:06]} 12. Qd4 {[%emt 0:00:25]} f6 {[%emt 0:01:00]} 13. b4 {[%emt 0:10:49]} Bg7 {[%emt 0:02:44]} 14. bxa5 {[%emt 0:00:32]} O-O {[%emt 0:00:32]} 15. Nge2 {[%emt 0:12:59]} Rc8 {[%emt 0:01:40]} 16. O-O {[%emt 0:06:41]} Qxa5 {[%emt 0:00:41]} 17. Bd2 {[%emt 0:04:32]} f5 {[%emt 0:02:08]} 18. Qd3 {[%emt 0:00:15]} Qb6 {[%emt 0:00:56]} 19. Rab1 {[%emt 0:01:14]} Qc7 {[%emt 0:01:22]} 20. Bf4 {[%emt 0:07:43]} Qc4 {[%emt 0:01:05]} 21. Qxc4 {[%emt 0:07:38]} Rxc4 {[%emt 0:00:11]} 22. Rxb7 {[%emt 0:10:38]} Bc8 {[%emt 0:00:54]} 23. Rc7 {[%emt 0:00:10]} Rxc7 {[%emt 0:00:22]} 24. Bxc7 {[%emt 0:00:06]} Ba6 {[%emt 0:00:08]} 25. Rb1 {[%emt 0:00:24]} Kf7 {[%emt 0:01:30]} 26. Rb8 {[%emt 0:00:37]} Bc4 {[%emt 0:00:32]} 27. Rxf8+ {[%emt 0:00:08]} Bxf8 {[%emt 0:00:11]} 28. Kf1 {[%emt 0:01:06]} Ke8 {[%emt 0:03:34]} 29. Ke1 {[%emt 0:01:52]} Kd7 {[%emt 0:01:16]} 30. Bb8 {[%emt 0:00:21]} a6 {[%emt 0:00:24]} 31. Kd2 {[%emt 0:00:12]} e6 {[%emt 0:00:05]} 32. dxe6+ {[%emt 0:00:48]} Bxe6 {[%emt 0:00:13]} 33. Kd3 {[%emt 0:02:35]} Kc6 {[%emt 0:00:41]} 34. Nd4+ {[%emt 0:00:07]} Kd7 {[%emt 0:00:21]} 35. Nxe6 {[%emt 0:00:16]} Kxe6 {[%emt 0:00:04]} 36. Kc4 {[%emt 0:00:26]} 1-0

[Event "GER-ch Youth U10 2020"]
[Site "Willingen"]
[Date "2020.10.30"]
[Round "5.4"]
[White "Herrmann, Jakob"]
[Black "Nönnig, Jakob"]
[Result "1-0"]
[ECO "C44"]
[WhiteElo "1504"]
[BlackElo "1442"]
[Annotator "NA RC"]
[PlyCount "91"]
[EventDate "2020.10.27"]
[EventType "swiss"]
[EventRounds "7"]
[EventCountry "GER"]
[SourceTitle "playchess.com"]
[Source "ChessBase"]
[SourceQuality "1"]
[TimeControl "40/4500+30:900+30"]

1. e4 {[%emt 0:00:00]} e5 {[%emt 0:00:00]} 2. Nf3 {[%emt 0:00:00]} Nc6 {[%emt 0:00:00]} 3. d4 {[%emt 0:00:11]} exd4 {[%emt 0:00:00]} 4. Bc4 {[%emt 0:00:36]} Bb4+ {[%emt 0:00:05]} 5. Bd2 {[%emt 0:17:55]} Bxd2+ 6. Qxd2 {[%emt 0:00:22]} Nf6 {[%emt 0:11:38]} 7. e5 {[%emt 0:08:32]} Qe7 {[%emt 0:14:32]} 8. O-O {[%emt 0:05:52]} Ne4 {[%emt 0:02:19]} 9. Qf4 {[%emt 0:01:43]} Nc5 {[%emt 0:02:25]} 10. Nxd4 {[%emt 0:02:41]} Nxd4 {[%emt 0:01:06]} 11. Qxd4 {[%emt 0:00:07]} O-O {[%emt 0:01:37]} 12. Nc3 {[%emt 0:01:31]} Ne6 {[%emt 0:02:39]} 13. Qe3 {[%emt 0:05:50]} c6 {[%emt 0:03:23]} 14. Ne4 {[%emt 0:01:39]} b5 {[%emt 0:05:09]} 15. Bxe6 {[%emt 0:01:30]} dxe6 {[%emt 0:02:22]} 16. Nd6 {[%emt 0:00:30]} Bb7 {[%emt 0:03:31]} 17. b4 {[%emt 0:03:48]} a5 {[%emt 0:01:57]} 18. Qb6 {[%emt 0:00:49]} Rfb8 {[%emt 0:02:31]} 19. a3 {[%emt 0:00:52]} Ra6 {[%emt 0:02:30]} 20. Qc5 {[%emt 0:00:48]} Rd8 {[%emt 0:03:46]} 21. Rfd1 {[%emt 0:00:28]} h6 {[%emt 0:04:14]} 22. Rd3 {[%emt 0:09:32]} axb4 {[%emt 0:04:47]} 23. Qxb4 {[%emt 0:01:56]} Ra4 {[%emt 0:02:42]} 24. Qc5 {[%emt 0:02:38]} Rg4 {[%emt 0:06:15]} 25. Nxb7 {[%emt 0:01:03]} Rd7 {[%emt 0:01:35]} 26. Qxe7 {[%emt 0:01:12]} Rxe7 {[%emt 0:00:23]} 27. Rd8+ {[%emt 0:00:11]} Kh7 {[%emt 0:00:10]} 28. Nd6 {[%emt 0:00:09]} f6 {[%emt 0:00:32]} 29. Rc8 {[%emt 0:03:10]} fxe5 {[%emt 0:02:31]} 30. Rxc6 {[%emt 0:00:06]} Rd4 {[%emt 0:00:44]} 31. Nxb5 {[%emt 0:00:30]} Rd5 {[%emt 0:00:16]} 32. c4 {[%emt 0:00:23]} Rd2 {[%emt 0:00:28]} 33. Nc7 {[%emt 0:00:47]} Rf7 {[%emt 0:01:08]} 34. Rf1 {[%emt 0:01:15]} e4 {[%emt 0:01:02]} 35. Nxe6 {[%emt 0:00:47]} Rf6 {[%emt 0:00:27]} 36. c5 {[%emt 0:01:40]} Rd3 {[%emt 0:01:21]} 37. Ra6 {[%emt 0:03:54]} Rc3 {[%emt 0:00:58]} 38. a4 {[%emt 0:00:45]} Rc2 {[%emt 0:00:45]} 39. Nd4 {[%emt 0:02:24]} Rcxf2 {[%emt 0:01:12]} 40. Rxf6 {[%emt 0:00:17]} Rxf6 {[%emt 0:00:15]} 41. Rxf6 {[%emt 0:15:02]} gxf6 42. c6 {[%emt 0:00:07]} Kg6 {[%emt 0:15:13]} 43. c7 {[%emt 0:00:02]} h5 {[%emt 0:00:09]} 44. c8=Q {[%emt 0:00:03]} e3 {[%emt 0:00:26]} 45. Qg8+ {[%emt 0:00:08]} Kh6 {[%emt 0:00:12]} 46. Nf5# 1-0

[Event "GER-ch Youth U10 2020"]
[Site "Willingen"]
[Date "2020.10.30"]
[Round "5.5"]
[White "Aniol, Nico"]
[Black "Thümler, Floris"]
[Result "1-0"]
[ECO "B09"]
[WhiteElo "1417"]
[BlackElo "1295"]
[Annotator "NA RC"]
[PlyCount "57"]
[EventDate "2020.10.27"]
[EventType "swiss"]
[EventRounds "7"]
[EventCountry "GER"]
[SourceTitle "playchess.com"]
[Source "ChessBase"]
[SourceQuality "1"]
[TimeControl "40/4500+30:900+30"]

1. e4 {[%emt 0:00:00]} d6 {[%emt 0:00:00]} 2. d4 {[%emt 0:00:32]} Nf6 {[%emt 0:00:38]} 3. Nc3 {[%emt 0:01:03]} g6 {[%emt 0:01:14]} 4. f4 {[%emt 0:01:59]} Bg7 {[%emt 0:01:21]} 5. Nf3 {[%emt 0:03:47]} c5 {[%emt 0:02:01]} 6. dxc5 {[%emt 0:01:47]} Qa5 {[%emt 0:01:50]} 7. cxd6 {[%emt 0:01:34]} Nxe4 {[%emt 0:01:22]} 8. Bb5+ {[%emt 0:03:10]} Bd7 {[%emt 0:01:38]} 9. Bxd7+ {[%emt 0:00:07]} Nxd7 {[%emt 0:01:17]} 10. Bd2 {[%emt 0:03:38]} Nxc3 {[%emt 0:05:17]} 11. bxc3 {[%emt 0:00:10]} Bxc3 {[%emt 0:02:52]} 12. Qe2 {[%emt 0:01:01]} e6 {[%emt 0:06:35]} 13. O-O {[%emt 0:04:31]} Qc5+ {[%emt 0:03:00]} 14. Be3 {[%emt 0:01:25]} Qxd6 {[%emt 0:03:20]} 15. Rad1 {[%emt 0:01:56]} Qc7 {[%emt 0:02:31]} 16. Bd4 {[%emt 0:08:34]} O-O {[%emt 0:02:47]} 17. Bxc3 {[%emt 0:01:04]} Qxc3 18. Rxd7 {[%emt 0:02:44]} Rac8 {[%emt 0:02:29]} 19. Rxb7 {[%emt 0:01:37]} Rfd8 {[%emt 0:00:54]} 20. Kh1 {[%emt 0:01:43]} Rc7 {[%emt 0:01:44]} 21. Rxc7 {[%emt 0:01:51]} Qxc7 {[%emt 0:01:25]} 22. h3 {[%emt 0:02:41]} Qxf4 {[%emt 0:01:49]} 23. Ne5 {[%emt 0:02:15]} Rd2 {[%emt 0:02:53]} 24. Qb5 {[%emt 0:01:16]} Qe4 {[%emt 0:06:11]} 25. Qe8+ {[%emt 0:00:16]} Kg7 {[%emt 0:00:29]} 26. Qxf7+ {[%emt 0:00:05]} Kh6 {[%emt 0:00:46]} 27. Ng4+ {[%emt 0:00:07]} Kg5 {[%emt 0:01:13]} 28. Qe7+ {[%emt 0:00:11]} Kh5 {[%emt 0:01:01]} 29. Nf6+ {[%emt 0:00:01]} 1-0

[Event "GER-ch Youth U10 2020"]
[Site "Willingen"]
[Date "2020.10.30"]
[Round "5.6"]
[White "Kullmann, Max"]
[Black "Kullmann, Theo"]
[Result "1-0"]
[ECO "D37"]
[WhiteElo "1375"]
[BlackElo "1632"]
[Annotator "NA RC"]
[PlyCount "87"]
[EventDate "2020.10.27"]
[EventType "swiss"]
[EventRounds "7"]
[EventCountry "GER"]
[SourceTitle "playchess.com"]
[Source "ChessBase"]
[SourceQuality "1"]
[TimeControl "40/4500+30:900+30"]

1. d4 {[%emt 0:00:00]} d5 {[%emt 0:00:00]} 2. c4 {[%emt 0:00:00]} e6 {[%emt 0:00:00]} 3. Nc3 {[%emt 0:00:00]} Nf6 {[%emt 0:00:04]} 4. Nf3 {[%emt 0:00:18]} Nbd7 {[%emt 0:00:19]} 5. Bf4 {[%emt 0:00:32]} Be7 {[%emt 0:00:43]} 6. e3 {[%emt 0:00:29]} O-O {[%emt 0:00:30]} 7. Bd3 {[%emt 0:00:20]} dxc4 {[%emt 0:00:07]} 8. Bxc4 {[%emt 0:00:15]} a6 {[%emt 0:01:18]} 9. O-O {[%emt 0:00:23]} b5 {[%emt 0:00:42]} 10. Bd3 {[%emt 0:00:31]} Bb7 {[%emt 0:00:52]} 11. Rc1 {[%emt 0:00:46]} Rc8 {[%emt 0:00:48]} 12. Be2 {[%emt 0:00:43]} Nb6 {[%emt 0:03:19]} 13. Ne5 {[%emt 0:01:57]} Bd6 {[%emt 0:08:33]} 14. Bf3 {[%emt 0:01:10]} Bxf3 {[%emt 0:13:06]} 15. Qxf3 {[%emt 0:00:28]} Bxe5 16. Bxe5 {[%emt 0:00:50]} Nfd7 {[%emt 0:05:21]} 17. Bf4 {[%emt 0:01:04]} Nc4 {[%emt 0:01:11]} 18. Rc2 {[%emt 0:01:10]} c5 {[%emt 0:03:42]} 19. b3 {[%emt 0:01:06]} Na3 {[%emt 0:02:42]} 20. Rcc1 {[%emt 0:00:52]} cxd4 {[%emt 0:00:55]} 21. exd4 {[%emt 0:00:30]} b4 {[%emt 0:00:37]} 22. Ne4 {[%emt 0:01:42]} Qb6 {[%emt 0:02:01]} 23. Bd6 {[%emt 0:05:07]} Rfd8 {[%emt 0:02:33]} 24. Be7 {[%emt 0:01:20]} Re8 {[%emt 0:00:17]} 25. Nd6 {[%emt 0:00:18]} Qb8 {[%emt 0:06:06]} 26. Qxf7+ {[%emt 0:01:40]} Kh8 {[%emt 0:00:05]} 27. Rxc8 {[%emt 0:01:10]} Rxc8 {[%emt 0:00:02]} 28. Nxc8 {[%emt 0:00:17]} Qxc8 {[%emt 0:00:09]} 29. Qxe6 {[%emt 0:00:44]} Nb5 {[%emt 0:06:28]} 30. Bxb4 {[%emt 0:01:41]} Nxd4 {[%emt 0:02:29]} 31. Qd5 {[%emt 0:03:13]} Ne2+ {[%emt 0:01:41]} 32. Kh1 {[%emt 0:00:15]} Nf4 {[%emt 0:09:11]} 33. Qe4 {[%emt 0:01:06]} Ng6 {[%emt 0:00:49]} 34. Re1 {[%emt 0:00:29]} Nf6 {[%emt 0:00:21]} 35. Qe3 {[%emt 0:00:53]} Qb7 {[%emt 0:01:38]} 36. Bc3 {[%emt 0:01:40]} Nh4 {[%emt 0:03:08]} 37. Qg3 {[%emt 0:01:35]} Nf5 {[%emt 0:01:59]} 38. Qd3 {[%emt 0:03:00]} Nh6 {[%emt 0:02:27]} 39. Bxf6 {[%emt 0:02:15]} gxf6 {[%emt 0:00:40]} 40. Qd8+ {[%emt 0:00:45]} Ng8 {[%emt 0:00:10]} 41. Re8 {[%emt 0:16:16]} h5 {[%emt 0:16:33]} 42. Rxg8+ {[%emt 0:00:36]} Kh7 {[%emt 0:00:05]} 43. Rh8+ {[%emt 0:00:39]} Kg6 {[%emt 0:00:10]} 44. Qe8+ {[%emt 0:00:14]} 1-0